[Event "Live Chess"]
[Site "Chess.com"]
[Date "2023.05.20"]
[Round "-"]
[White "lateforthesky"]
[Black "AdamOwls"]
[Result "1-0"]
[WhiteElo "2101"]
[BlackElo "1946"]
[TimeControl "300"]
[EndTime "12:49:28 PDT"]
[Termination "lateforthesky won by checkmate"]

1. e4 {[%clk 0:04:57.7]} 1... c6 {[%clk 0:04:56.9]} 2. Nf3 {[%clk 0:04:52.4]}
2... d5 {[%clk 0:04:56.2]} 3. exd5 {[%clk 0:04:51.6]} 3... cxd5 {[%clk
0:04:55.1]} 4. Ne5 {[%clk 0:04:51.3]} 4... Nc6 {[%clk 0:04:53.6]} 5. Bb5 {[%clk
0:04:49.5]} 5... Bd7 {[%clk 0:04:51.7]} 6. Nxd7 {[%clk 0:04:48.1]} 6... Qxd7
{[%clk 0:04:51.6]} 7. d4 {[%clk 0:04:43.3]} 7... a6 {[%clk 0:04:50.6]} 8. Be2
{[%clk 0:04:38.4]} 8... Nf6 {[%clk 0:04:48.7]} 9. c3 {[%clk 0:04:36.3]} 9... e6
{[%clk 0:04:47.7]} 10. Bf4 {[%clk 0:04:32.1]} 10... Bd6 {[%clk 0:04:45.8]} 11.
Bxd6 {[%clk 0:04:30.8]} 11... Qxd6 {[%clk 0:04:45.7]} 12. O-O {[%clk 0:04:27.9]}
12... O-O {[%clk 0:04:44.7]} 13. Nd2 {[%clk 0:04:26.2]} 13... Rac8 {[%clk
0:04:40.4]} 14. Nf3 {[%clk 0:04:23]} 14... Ne7 {[%clk 0:04:39]} 15. Ne5 {[%clk
0:04:17.7]} 15... Qd8 {[%clk 0:04:29.2]} 16. Bd3 {[%clk 0:04:09.1]} 16... Nc6
{[%clk 0:04:18.2]} 17. f4 {[%clk 0:04:03.9]} 17... Ne7 {[%clk 0:04:11]} 18. Qe2
{[%clk 0:04:01.8]} 18... Rc7 {[%clk 0:04:09.3]} 19. Rf3 {[%clk 0:03:55.5]} 19...
Nc8 {[%clk 0:04:06.7]} 20. f5 {[%clk 0:03:34.6]} 20... exf5 {[%clk 0:04:01.4]}
21. Rxf5 {[%clk 0:03:32]} 21... Nd6 {[%clk 0:03:59.4]} 22. Rf4 {[%clk
0:03:23.3]} 22... Nde4 {[%clk 0:03:56.5]} 23. Raf1 {[%clk 0:03:19.5]} 23... b5
{[%clk 0:03:35.9]} 24. a3 {[%clk 0:03:16.7]} 24... h6 {[%clk 0:03:18.8]} 25. h3
{[%clk 0:03:12.8]} 25... Ng3 {[%clk 0:03:05.1]} 26. Qf3 {[%clk 0:03:04]} 26...
Nxf1 {[%clk 0:03:03]} 27. Qxf1 {[%clk 0:03:02.2]} 27... Rb7 {[%clk 0:02:38]} 28.
Qe2 {[%clk 0:02:42.4]} 28... Qb8 {[%clk 0:02:29.3]} 29. Rxf6 {[%clk 0:02:37.3]}
29... gxf6 {[%clk 0:02:24.3]} 30. Qg4+ {[%clk 0:02:32.6]} 30... Kh8 {[%clk
0:02:22.5]} 31. Qf5 {[%clk 0:02:29.6]} 31... fxe5 {[%clk 0:02:16.5]} 32. Qh7#
{[%clk 0:02:27.5]} 1-0

[Event "Live Chess"]
[Site "Chess.com"]
[Date "2023.05.20"]
[Round "-"]
[White "DerbyKnight"]
[Black "chekagain"]
[Result "0-1"]
[WhiteElo "1572"]
[BlackElo "814"]
[TimeControl "300"]
[EndTime "12:49:30 PDT"]
[Termination "chekagain won on time"]

1. d4 {[%clk 0:04:55.6]} 1... e5 {[%clk 0:04:58]} 2. dxe5 {[%clk 0:04:53.2]}
2... Nc6 {[%clk 0:04:55.2]} 3. Nf3 {[%clk 0:04:50.7]} 3... Qe7 {[%clk 0:04:54]}
4. Bf4 {[%clk 0:04:46.5]} 4... Qb4+ {[%clk 0:04:52.3]} 5. Bd2 {[%clk 0:04:42.6]}
5... Qxb2 {[%clk 0:04:50.6]} 6. Bc3 {[%clk 0:04:40.4]} 6... Bb4 {[%clk
0:04:47.7]} 7. Bxb4 {[%clk 0:04:23]} 7... Nxb4 {[%clk 0:04:44.9]} 8. Na3 {[%clk
0:03:59.4]} 8... Ne7 {[%clk 0:04:30.1]} 9. e4 {[%clk 0:03:44.6]} 9... Qc3+
{[%clk 0:04:22.1]} 10. Qd2 {[%clk 0:03:37.4]} 10... Qxa1+ {[%clk 0:04:18.3]} 11.
Ke2 {[%clk 0:03:34.4]} 11... Nxa2 {[%clk 0:04:09]} 12. Nb5 {[%clk 0:03:26.2]}
12... Kd8 {[%clk 0:03:12.2]} 13. g3 {[%clk 0:03:15.2]} 13... Nc1+ {[%clk
0:03:09.6]} 14. Ke3 {[%clk 0:03:07.3]} 14... Qa4 {[%clk 0:02:50.3]} 15. Nc3
{[%clk 0:02:41.9]} 15... Qa3 {[%clk 0:02:44.1]} 16. Bc4 {[%clk 0:02:27.2]} 16...
b6 {[%clk 0:02:32.5]} 17. Rxc1 {[%clk 0:02:22.5]} 17... Qc5+ {[%clk 0:02:22.7]}
18. Kd3 {[%clk 0:01:50.5]} 18... a5 {[%clk 0:02:04.6]} 19. Nb5 {[%clk
0:01:29.5]} 19... Ba6 {[%clk 0:01:53.4]} 20. Rb1 {[%clk 0:01:20.6]} 20... c6
{[%clk 0:01:49.7]} 21. e6 {[%clk 0:01:07.5]} 21... d5 {[%clk 0:01:25.3]} 22.
exd5 {[%clk 0:01:00.3]} 22... Bxb5 {[%clk 0:01:22.6]} 23. Bxb5 {[%clk
0:00:52.9]} 23... cxb5 {[%clk 0:01:21]} 24. Ke2 {[%clk 0:00:45.1]} 24... Qc4+
{[%clk 0:01:07.9]} 25. Ke1 {[%clk 0:00:36.9]} 25... a4 {[%clk 0:01:05]} 26. Ng5
{[%clk 0:00:22]} 26... Ke8 {[%clk 0:00:57.7]} 27. exf7+ {[%clk 0:00:11.9]} 27...
Kf8 {[%clk 0:00:55.6]} 28. d6 {[%clk 0:00:03.6]} 28... Qd5 {[%clk 0:00:53.5]}
0-1

[Event "Live Chess"]
[Site "Chess.com"]
[Date "2023.05.20"]
[Round "-"]
[White "Enhard"]
[Black "gmnorfolk"]
[Result "0-1"]
[WhiteElo "1452"]
[BlackElo "2040"]
[TimeControl "300"]
[EndTime "12:49:35 PDT"]
[Termination "gmnorfolk won by resignation"]

1. d4 {[%clk 0:04:58.5]} 1... Nf6 {[%clk 0:04:58.7]} 2. Bf4 {[%clk 0:04:57]}
2... d5 {[%clk 0:04:57.1]} 3. e3 {[%clk 0:04:56.1]} 3... e6 {[%clk 0:04:56.1]}
4. Nf3 {[%clk 0:04:54.9]} 4... Bd6 {[%clk 0:04:55.3]} 5. Bxd6 {[%clk 0:04:52.5]}
5... Qxd6 {[%clk 0:04:53.5]} 6. c3 {[%clk 0:04:52.1]} 6... Nbd7 {[%clk 0:04:51]}
7. h3 {[%clk 0:04:51.2]} 7... e5 {[%clk 0:04:50.1]} 8. dxe5 {[%clk 0:04:49.1]}
8... Nxe5 {[%clk 0:04:50]} 9. Nxe5 {[%clk 0:04:48.5]} 9... Qxe5 {[%clk
0:04:49.6]} 10. Nd2 {[%clk 0:04:46.3]} 10... O-O {[%clk 0:04:49.1]} 11. Nf3
{[%clk 0:04:44.5]} 11... Qe7 {[%clk 0:04:47.9]} 12. Be2 {[%clk 0:04:43.1]} 12...
c5 {[%clk 0:04:45.4]} 13. O-O {[%clk 0:04:39.4]} 13... b6 {[%clk 0:04:44.5]} 14.
Re1 {[%clk 0:04:34.3]} 14... Bb7 {[%clk 0:04:43.9]} 15. Qc1 {[%clk 0:04:19.6]}
15... Rad8 {[%clk 0:04:19.2]} 16. a4 {[%clk 0:04:12.1]} 16... a5 {[%clk
0:04:17.5]} 17. Bb5 {[%clk 0:04:08.3]} 17... Ne4 {[%clk 0:04:14.7]} 18. Nd2
{[%clk 0:04:04.5]} 18... Nd6 {[%clk 0:04:11.2]} 19. Be2 {[%clk 0:04:01.6]} 19...
Rfe8 {[%clk 0:04:07.2]} 20. Bf3 {[%clk 0:04:00.1]} 20... Nf5 {[%clk 0:04:01.9]}
21. Nb3 {[%clk 0:03:55.2]} 21... Nh4 {[%clk 0:04:00.1]} 22. Nd2 {[%clk
0:03:49.8]} 22... Nxf3+ {[%clk 0:03:58.3]} 23. Nxf3 {[%clk 0:03:48.8]} 23... Qf6
{[%clk 0:03:56.8]} 24. Qd1 {[%clk 0:03:44.4]} 24... Rd6 {[%clk 0:03:51.8]} 25.
Rb1 {[%clk 0:03:17.3]} 25... h6 {[%clk 0:03:44.4]} 26. b3 {[%clk 0:02:59.5]}
26... Bc8 {[%clk 0:03:40]} 27. Qe2 {[%clk 0:02:47.3]} 27... Bf5 {[%clk 0:03:38]}
28. Rbc1 {[%clk 0:02:44.5]} 28... g5 {[%clk 0:03:23]} 29. Nh2 {[%clk 0:02:36.9]}
29... Bg6 {[%clk 0:03:20.1]} 30. Ng4 {[%clk 0:02:35.3]} 30... Qg7 {[%clk
0:03:19.2]} 31. Qb5 {[%clk 0:02:31.9]} 31... Rde6 {[%clk 0:03:13.2]} 32. c4
{[%clk 0:02:23.2]} 32... d4 {[%clk 0:03:12.1]} 33. exd4 {[%clk 0:02:21.5]} 33...
Rxe1+ {[%clk 0:03:10.2]} 34. Rxe1 {[%clk 0:02:20.4]} 34... Rxe1+ {[%clk
0:03:10]} 35. Kh2 {[%clk 0:02:20.2]} 35... cxd4 {[%clk 0:03:05.9]} 36. Qxb6
{[%clk 0:02:15.8]} 36... Re6 {[%clk 0:02:54.8]} 37. Qxa5 {[%clk 0:02:08.9]}
37... h5 {[%clk 0:02:53.2]} 38. Qd8+ {[%clk 0:01:27.1]} 38... Qf8 {[%clk
0:02:38.9]} 39. Nh6+ {[%clk 0:01:21]} 39... Kg7 {[%clk 0:02:32.6]} 40. Qxd4+
{[%clk 0:01:03.5]} 40... Kxh6 {[%clk 0:02:27.4]} 41. c5 {[%clk 0:01:00]} 41...
Qb8+ {[%clk 0:02:22.5]} 42. g3 {[%clk 0:00:54.4]} 42... Qxb3 {[%clk 0:02:18.2]}
43. Qh8+ {[%clk 0:00:53]} 43... Bh7 {[%clk 0:02:14.1]} 44. Qf8+ {[%clk
0:00:51.5]} 44... Kg6 {[%clk 0:02:11.6]} 45. Qa8 {[%clk 0:00:31.5]} 45... Rf6
{[%clk 0:02:05.7]} 46. Qe4+ {[%clk 0:00:28.4]} 46... Kg7 {[%clk 0:02:02.4]} 47.
Qe2 {[%clk 0:00:22]} 47... Qf3 {[%clk 0:01:55.6]} 0-1

[Event "Live Chess"]
[Site "Chess.com"]
[Date "2023.05.20"]
[Round "-"]
[White "MartinWalker4"]
[Black "bristolunichess"]
[Result "0-1"]
[WhiteElo "2030"]
[BlackElo "1785"]
[TimeControl "300"]
[EndTime "12:49:37 PDT"]
[Termination "bristolunichess won on time"]

1. e4 {[%clk 0:04:56.1]} 1... c6 {[%clk 0:04:58.6]} 2. d4 {[%clk 0:04:54.1]}
2... d5 {[%clk 0:04:57.3]} 3. exd5 {[%clk 0:04:53]} 3... cxd5 {[%clk 0:04:55.9]}
4. c4 {[%clk 0:04:51.8]} 4... Nf6 {[%clk 0:04:52.7]} 5. Nc3 {[%clk 0:04:50.8]}
5... g6 {[%clk 0:04:51.7]} 6. Qb3 {[%clk 0:04:48.5]} 6... e6 {[%clk 0:04:23.7]}
7. Nf3 {[%clk 0:04:37.6]} 7... Bg7 {[%clk 0:04:22.2]} 8. cxd5 {[%clk 0:04:20.4]}
8... exd5 {[%clk 0:04:20.7]} 9. Bb5+ {[%clk 0:04:18.2]} 9... Nc6 {[%clk
0:03:31.6]} 10. Bg5 {[%clk 0:04:15.8]} 10... O-O {[%clk 0:03:26.4]} 11. O-O
{[%clk 0:04:13.8]} 11... Be6 {[%clk 0:03:20.5]} 12. Bxc6 {[%clk 0:03:49.2]}
12... bxc6 {[%clk 0:03:19]} 13. Qa4 {[%clk 0:03:47.9]} 13... Qb6 {[%clk
0:03:17.3]} 14. Ne5 {[%clk 0:03:31]} 14... Rfc8 {[%clk 0:02:55.1]} 15. b3 {[%clk
0:03:03.9]} 15... c5 {[%clk 0:02:46]} 16. dxc5 {[%clk 0:02:41.3]} 16... Qxc5
{[%clk 0:02:31.9]} 17. Ne2 {[%clk 0:02:39.7]} 17... Ne4 {[%clk 0:02:28.7]} 18.
Be3 {[%clk 0:02:21.8]} 18... Qd6 {[%clk 0:02:27.7]} 19. f4 {[%clk 0:02:13.7]}
19... Rc7 {[%clk 0:02:09.1]} 20. Bd4 {[%clk 0:02:05.4]} 20... Rac8 {[%clk
0:02:05.5]} 21. Rac1 {[%clk 0:01:41]} 21... Nc5 {[%clk 0:01:57.1]} 22. Qa3
{[%clk 0:01:34.7]} 22... Ne4 {[%clk 0:01:44.2]} 23. Qxd6 {[%clk 0:01:26.8]}
23... Nxd6 {[%clk 0:01:44.1]} 24. Nd3 {[%clk 0:01:22.3]} 24... Nf5 {[%clk
0:01:37.7]} 25. Rxc7 {[%clk 0:00:37]} 25... Rxc7 {[%clk 0:01:35.7]} 26. Bxg7
{[%clk 0:00:35.7]} 26... Kxg7 {[%clk 0:01:35.6]} 27. Rc1 {[%clk 0:00:34.5]}
27... Rxc1+ {[%clk 0:01:31.2]} 28. Ndxc1 {[%clk 0:00:33.5]} 28... d4 {[%clk
0:01:29.2]} 29. Nd3 {[%clk 0:00:31.8]} 29... Kf6 {[%clk 0:01:23.4]} 30. Kf2
{[%clk 0:00:30.5]} 30... h5 {[%clk 0:01:20.8]} 31. g3 {[%clk 0:00:28.6]} 31...
Nd6 {[%clk 0:01:19.9]} 32. Nxd4 {[%clk 0:00:25.8]} 32... Ne4+ {[%clk 0:01:18.6]}
33. Ke3 {[%clk 0:00:24.4]} 33... Bd5 {[%clk 0:01:16.4]} 34. Nb4 {[%clk
0:00:20.3]} 34... Ba8 {[%clk 0:01:13.1]} 35. Nbc6 {[%clk 0:00:19.2]} 35... Nc3
{[%clk 0:01:10.9]} 36. Nxa7 {[%clk 0:00:17.6]} 36... Nxa2 {[%clk 0:01:09.4]} 37.
Nab5 {[%clk 0:00:16.6]} 37... Nb4 {[%clk 0:01:08.8]} 38. Nc3 {[%clk 0:00:15]}
38... Nd5+ {[%clk 0:01:06.5]} 39. Nxd5+ {[%clk 0:00:13.5]} 39... Bxd5 {[%clk
0:01:06.4]} 40. b4 {[%clk 0:00:12.7]} 40... Bb7 {[%clk 0:01:06]} 41. Nb3 {[%clk
0:00:10.4]} 41... Ke7 {[%clk 0:01:05.9]} 42. Kd4 {[%clk 0:00:08.9]} 42... Kd6
{[%clk 0:01:05.8]} 43. Nc5 {[%clk 0:00:07.6]} 43... Bc6 {[%clk 0:01:05.7]} 44.
Ne4+ {[%clk 0:00:06.7]} 44... Bxe4 {[%clk 0:01:03.3]} 45. Kxe4 {[%clk
0:00:05.1]} 45... Kc6 {[%clk 0:01:03.2]} 46. Ke5 {[%clk 0:00:04.1]} 46... Kb5
{[%clk 0:01:02.6]} 47. Kf6 {[%clk 0:00:03.3]} 47... Kxb4 {[%clk 0:01:02.5]} 48.
Kxf7 {[%clk 0:00:02.7]} 48... Kc5 {[%clk 0:01:02.2]} 49. Kxg6 {[%clk 0:00:02.1]}
49... h4 {[%clk 0:00:59.8]} 50. f5 {[%clk 0:00:01.4]} 50... Kd6 {[%clk
0:00:59.6]} 51. f6 {[%clk 0:00:00.6]} 51... hxg3 {[%clk 0:00:57.1]} 0-1

[Event "Live Chess"]
[Site "Chess.com"]
[Date "2023.05.20"]
[Round "-"]
[White "AttackingSnowLeopard"]
[Black "sup3rm0nk3y"]
[Result "1-0"]
[WhiteElo "2037"]
[BlackElo "1320"]
[TimeControl "300"]
[EndTime "12:49:38 PDT"]
[Termination "AttackingSnowLeopard won by resignation"]

1. d4 {[%clk 0:04:58.3]} 1... d5 {[%clk 0:04:58.4]} 2. c4 {[%clk 0:04:57.6]}
2... dxc4 {[%clk 0:04:55]} 3. Nf3 {[%clk 0:04:56.3]} 3... c3 {[%clk 0:04:51.9]}
4. Nxc3 {[%clk 0:04:54.7]} 4... Bg4 {[%clk 0:04:49.6]} 5. Ne5 {[%clk 0:04:53.4]}
5... Nf6 {[%clk 0:04:43.6]} 6. Nxg4 {[%clk 0:04:51.2]} 6... Nxg4 {[%clk
0:04:42.6]} 7. e4 {[%clk 0:04:50.7]} 7... Nf6 {[%clk 0:04:40.6]} 8. Be3 {[%clk
0:04:48.3]} 8... e6 {[%clk 0:04:31.2]} 9. Be2 {[%clk 0:04:46.8]} 9... Bb4 {[%clk
0:04:28.7]} 10. f3 {[%clk 0:04:44.9]} 10... Nc6 {[%clk 0:04:23.7]} 11. O-O
{[%clk 0:04:43.4]} 11... O-O {[%clk 0:04:21.7]} 12. Bb5 {[%clk 0:04:42.1]} 12...
Ne7 {[%clk 0:04:01.9]} 13. a3 {[%clk 0:04:39.3]} 13... Ba5 {[%clk 0:03:58.8]}
14. b4 {[%clk 0:04:37.8]} 14... Bb6 {[%clk 0:03:57.7]} 15. Na4 {[%clk
0:04:37.4]} 15... c6 {[%clk 0:03:44.1]} 16. Nxb6 {[%clk 0:04:33.7]} 16... axb6
{[%clk 0:03:41.5]} 17. Be2 {[%clk 0:04:33.3]} 17... b5 {[%clk 0:03:38.5]} 18.
Qd2 {[%clk 0:04:28.1]} 18... Ra6 {[%clk 0:03:30.6]} 19. g4 {[%clk 0:04:16.9]}
19... Qa8 {[%clk 0:03:27]} 20. g5 {[%clk 0:04:03.2]} 20... Nd7 {[%clk
0:03:14.7]} 21. Qc3 {[%clk 0:03:58.5]} 21... Nb6 {[%clk 0:03:05.8]} 22. h4
{[%clk 0:03:55.9]} 22... Nc4 {[%clk 0:03:04]} 23. Bxc4 {[%clk 0:03:46.3]} 23...
bxc4 {[%clk 0:03:03]} 24. Qxc4 {[%clk 0:03:46]} 24... Rxa3 {[%clk 0:03:01.6]}
25. Rxa3 {[%clk 0:03:44.8]} 25... Qxa3 {[%clk 0:02:59.9]} 26. Bf4 {[%clk
0:03:44.5]} 26... Ng6 {[%clk 0:02:37.3]} 27. Bg3 {[%clk 0:03:41.3]} 27... Kh8
{[%clk 0:02:14]} 28. Qc5 {[%clk 0:03:26.5]} 28... Rc8 {[%clk 0:01:32.7]} 29. h5
{[%clk 0:03:21.8]} 29... Nf8 {[%clk 0:01:29.5]} 30. Qe7 {[%clk 0:03:17.2]} 30...
f5 {[%clk 0:01:19.1]} 31. Be5 {[%clk 0:03:12.4]} 31... Qe3+ {[%clk 0:01:10.5]}
32. Kg2 {[%clk 0:03:07.6]} 32... Qxg5+ {[%clk 0:01:09.2]} 33. Qxg5 {[%clk
0:03:05.7]} 1-0

[Event "Live Chess"]
[Site "Chess.com"]
[Date "2023.05.20"]
[Round "-"]
[White "defenderalist"]
[Black "Richardallis"]
[Result "0-1"]
[WhiteElo "1588"]
[BlackElo "1776"]
[TimeControl "300"]
[EndTime "12:49:44 PDT"]
[Termination "Richardallis won by resignation"]

1. e4 {[%clk 0:04:58.8]} 1... d5 {[%clk 0:04:57.9]} 2. exd5 {[%clk 0:04:57.6]}
2... Nf6 {[%clk 0:04:57.3]} 3. Nc3 {[%clk 0:04:56.3]} 3... Nxd5 {[%clk
0:04:56.6]} 4. Nxd5 {[%clk 0:04:55.2]} 4... Qxd5 {[%clk 0:04:56.2]} 5. Nf3
{[%clk 0:04:54.5]} 5... Bf5 {[%clk 0:04:55.1]} 6. Be2 {[%clk 0:04:53.6]} 6... c6
{[%clk 0:04:53.4]} 7. O-O {[%clk 0:04:53]} 7... Nd7 {[%clk 0:04:52.2]} 8. h3
{[%clk 0:04:52.5]} 8... e6 {[%clk 0:04:51.1]} 9. d4 {[%clk 0:04:51.5]} 9... Bd6
{[%clk 0:04:49.6]} 10. c3 {[%clk 0:04:50.7]} 10... Rd8 {[%clk 0:04:46.7]} 11.
Be3 {[%clk 0:04:35.6]} 11... Bb8 {[%clk 0:04:45.3]} 12. b3 {[%clk 0:04:33.2]}
12... Qd6 {[%clk 0:04:44]} 13. g3 {[%clk 0:04:28.1]} 13... Bxh3 {[%clk
0:04:41.2]} 14. Re1 {[%clk 0:04:27.4]} 14... Nf6 {[%clk 0:04:38.7]} 15. Ng5
{[%clk 0:04:25.2]} 15... Bf5 {[%clk 0:04:36.2]} 16. Bf4 {[%clk 0:04:20.4]} 16...
Qe7 {[%clk 0:04:34.7]} 17. Bxb8 {[%clk 0:04:18.8]} 17... Rxb8 {[%clk 0:04:34.1]}
18. Bd3 {[%clk 0:04:06.1]} 18... Bxd3 {[%clk 0:04:32.5]} 19. Qxd3 {[%clk
0:04:05]} 19... h6 {[%clk 0:04:32.1]} 20. Nh3 {[%clk 0:03:55.9]} 20... Rd8
{[%clk 0:04:28.1]} 21. Qf3 {[%clk 0:03:48.3]} 21... O-O {[%clk 0:04:26.2]} 22.
Nf4 {[%clk 0:03:46.8]} 22... Nd5 {[%clk 0:04:24.8]} 23. Nh5 {[%clk 0:03:43.2]}
23... Qg5 {[%clk 0:04:23.5]} 24. Re5 {[%clk 0:03:32.9]} 24... Qg6 {[%clk
0:04:18]} 25. Rc1 {[%clk 0:03:21.7]} 25... Rd7 {[%clk 0:04:14.1]} 26. c4 {[%clk
0:03:20.3]} 26... Nb4 {[%clk 0:04:12.6]} 27. a3 {[%clk 0:03:14.5]} 27... Nd3
{[%clk 0:04:11.3]} 28. Qe3 {[%clk 0:03:05.3]} 28... Nxc1 {[%clk 0:04:06.3]} 29.
Qxc1 {[%clk 0:03:00.8]} 29... Rxd4 {[%clk 0:04:05.5]} 30. Qe1 {[%clk 0:02:54.6]}
30... f6 {[%clk 0:03:59.4]} 31. Nxg7 {[%clk 0:02:39.5]} 31... Kxg7 {[%clk
0:03:57.3]} 32. Rxe6 {[%clk 0:02:38.4]} 32... Rd7 {[%clk 0:03:51.2]} 0-1

[Event "Live Chess"]
[Site "Chess.com"]
[Date "2023.05.20"]
[Round "-"]
[White "Chesscoach_Golichenko"]
[Black "flyingpuffins"]
[Result "1-0"]
[WhiteElo "2634"]
[BlackElo "1958"]
[TimeControl "300"]
[EndTime "12:49:47 PDT"]
[Termination "Chesscoach_Golichenko won by resignation"]

1. d4 {[%clk 0:04:57.1]} 1... d5 {[%clk 0:04:58.3]} 2. Nc3 {[%clk 0:04:55.8]}
2... Nf6 {[%clk 0:04:56.3]} 3. Bf4 {[%clk 0:04:53.8]} 3... a6 {[%clk 0:04:55.1]}
4. f3 {[%clk 0:04:51.9]} 4... c5 {[%clk 0:04:50.6]} 5. e4 {[%clk 0:04:42.2]}
5... cxd4 {[%clk 0:04:30.5]} 6. Bxb8 {[%clk 0:04:32.7]} 6... Rxb8 {[%clk
0:04:06.6]} 7. Qxd4 {[%clk 0:04:30.4]} 7... e6 {[%clk 0:03:57.6]} 8. exd5 {[%clk
0:04:04]} 8... Nxd5 {[%clk 0:03:50]} 9. O-O-O {[%clk 0:03:52.6]} 9... Bd7 {[%clk
0:03:19.8]} 10. Nxd5 {[%clk 0:03:46.9]} 10... exd5 {[%clk 0:03:13.2]} 11. Re1+
{[%clk 0:03:43.5]} 11... Be7 {[%clk 0:03:11.4]} 12. Qxg7 {[%clk 0:03:41.6]}
12... Rf8 {[%clk 0:03:03.4]} 13. Bd3 {[%clk 0:03:36.6]} 13... Be6 {[%clk
0:03:02]} 14. Nh3 {[%clk 0:03:32.3]} 14... Qa5 {[%clk 0:03:00]} 15. Nf4 {[%clk
0:03:24.6]} 15... Kd7 {[%clk 0:02:35.5]} 16. Kb1 {[%clk 0:03:16.1]} 16... Rg8
{[%clk 0:02:20.6]} 17. Qe5 {[%clk 0:03:09.6]} 17... Rg5 {[%clk 0:02:16.6]} 18.
Qe2 {[%clk 0:03:06.2]} 18... Qb6 {[%clk 0:02:02.5]} 19. h4 {[%clk 0:03:00.1]}
19... Rg3 {[%clk 0:01:57.3]} 20. Bf5 {[%clk 0:02:51.1]} 20... Bf6 {[%clk
0:01:34.6]} 21. Bxe6+ {[%clk 0:02:49.2]} 21... fxe6 {[%clk 0:01:33.3]} 22. Qxe6+
{[%clk 0:02:45]} 22... Qxe6 {[%clk 0:01:32.3]} 23. Rxe6 {[%clk 0:02:40.6]} 23...
Rf8 {[%clk 0:01:14.6]} 24. Rxf6 {[%clk 0:02:32.1]} 24... Rxf6 {[%clk 0:01:04.4]}
25. Nh5 {[%clk 0:02:31.2]} 25... Rfg6 {[%clk 0:01:03.7]} 26. Nxg3 {[%clk
0:02:29.8]} 26... Rxg3 {[%clk 0:01:03.3]} 27. Rh2 {[%clk 0:02:29]} 27... Ke6
{[%clk 0:01:01.6]} 28. Kc1 {[%clk 0:02:28.1]} 28... Kf5 {[%clk 0:01:01.1]} 29.
Kd2 {[%clk 0:02:27.8]} 29... Kf4 {[%clk 0:01:00.5]} 30. Ke2 {[%clk 0:02:26.9]}
30... b5 {[%clk 0:00:58.9]} 31. Kf2 {[%clk 0:02:25.8]} 31... Rg8 {[%clk
0:00:58]} 32. Rh1 {[%clk 0:02:18.7]} 32... Rc8 {[%clk 0:00:56.5]} 33. c3 {[%clk
0:02:17.1]} 33... h5 {[%clk 0:00:54.8]} 34. Rd1 {[%clk 0:02:15.2]} 34... Rc5
{[%clk 0:00:53]} 35. g4 {[%clk 0:02:11.9]} 35... hxg4 {[%clk 0:00:49.5]} 36.
Rd4+ {[%clk 0:02:10.3]} 36... Kf5 {[%clk 0:00:47.1]} 37. fxg4+ {[%clk
0:02:10.2]} 37... Ke5 {[%clk 0:00:45.8]} 38. h5 {[%clk 0:02:05.6]} 38... Rc8
{[%clk 0:00:43.2]} 39. Kg3 {[%clk 0:02:04]} 39... a5 {[%clk 0:00:42.1]} 40. Rf4
{[%clk 0:02:02.4]} 40... Rg8 {[%clk 0:00:40.3]} 41. h6 {[%clk 0:01:59.3]} 41...
b4 {[%clk 0:00:37.8]} 42. cxb4 {[%clk 0:01:57.4]} 42... axb4 {[%clk 0:00:36.9]}
43. Rxb4 {[%clk 0:01:56.1]} 43... Rh8 {[%clk 0:00:35.9]} 44. g5 {[%clk
0:01:53.9]} 44... Kf5 {[%clk 0:00:34.9]} 45. Kh4 {[%clk 0:01:53]} 45... d4
{[%clk 0:00:33.7]} 46. Rxd4 {[%clk 0:01:51.2]} 46... Kg6 {[%clk 0:00:32.3]} 47.
Rd6+ {[%clk 0:01:50]} 47... Kh7 {[%clk 0:00:27.8]} 48. Rd7+ {[%clk 0:01:49.1]}
48... Kg8 {[%clk 0:00:22.2]} 49. Rg7+ {[%clk 0:01:49]} 49... Kf8 {[%clk
0:00:20.9]} 50. Kh5 {[%clk 0:01:47.7]} 1-0

[Event "Live Chess"]
[Site "Chess.com"]
[Date "2023.05.20"]
[Round "-"]
[White "whitedjohn"]
[Black "jennybobby44"]
[Result "0-1"]
[WhiteElo "1660"]
[BlackElo "1868"]
[TimeControl "300"]
[EndTime "12:49:48 PDT"]
[Termination "jennybobby44 won on time"]

1. e4 {[%clk 0:04:56.8]} 1... d6 {[%clk 0:04:57.2]} 2. d4 {[%clk 0:04:54.5]}
2... g6 {[%clk 0:04:54.2]} 3. Nc3 {[%clk 0:04:53.8]} 3... Bg7 {[%clk 0:04:51.6]}
4. Bc4 {[%clk 0:04:53.2]} 4... c6 {[%clk 0:04:49.4]} 5. Be3 {[%clk 0:04:49.3]}
5... b5 {[%clk 0:04:48.5]} 6. Bb3 {[%clk 0:04:45.8]} 6... b4 {[%clk 0:04:47.7]}
7. Nce2 {[%clk 0:04:40.3]} 7... a5 {[%clk 0:04:47]} 8. a3 {[%clk 0:04:35.1]}
8... Bb7 {[%clk 0:04:40.2]} 9. axb4 {[%clk 0:04:30.9]} 9... axb4 {[%clk
0:04:40.1]} 10. Rxa8 {[%clk 0:04:28.3]} 10... Bxa8 {[%clk 0:04:40]} 11. Qa1
{[%clk 0:04:24.6]} 11... Bb7 {[%clk 0:04:29.7]} 12. Qa7 {[%clk 0:04:12.6]} 12...
Qc7 {[%clk 0:04:28.7]} 13. Nf3 {[%clk 0:03:59.3]} 13... Nf6 {[%clk 0:04:27.7]}
14. e5 {[%clk 0:03:54.4]} 14... Nd5 {[%clk 0:04:20.3]} 15. exd6 {[%clk
0:03:40.6]} 15... exd6 {[%clk 0:04:16.7]} 16. Bxd5 {[%clk 0:03:29.4]} 16... cxd5
{[%clk 0:04:15.5]} 17. O-O {[%clk 0:03:23.7]} 17... O-O {[%clk 0:04:14]} 18. c3
{[%clk 0:03:10.3]} 18... Nc6 {[%clk 0:04:11.7]} 19. Qa2 {[%clk 0:03:00.8]} 19...
Ra8 {[%clk 0:04:06.7]} 20. Qxd5 {[%clk 0:02:56.9]} 20... Nxd4 {[%clk 0:04:01]}
21. Qxd4 {[%clk 0:02:52.8]} 21... Bxd4 {[%clk 0:03:58.9]} 22. Bxd4 {[%clk
0:02:52.4]} 22... Bxf3 {[%clk 0:03:57.5]} 23. gxf3 {[%clk 0:02:48.4]} 23... bxc3
{[%clk 0:03:55.3]} 24. Bxc3 {[%clk 0:02:46.9]} 24... Re8 {[%clk 0:03:51.8]} 25.
Nf4 {[%clk 0:02:39.9]} 25... Qc6 {[%clk 0:03:43]} 26. Kg2 {[%clk 0:02:33.7]}
26... h5 {[%clk 0:03:37.8]} 27. Rd1 {[%clk 0:02:30.4]} 27... Rd8 {[%clk
0:03:29.2]} 28. Nd5 {[%clk 0:02:28.4]} 28... Qa4 {[%clk 0:02:52.4]} 29. Rd4
{[%clk 0:02:11.8]} 29... Qa6 {[%clk 0:02:31.6]} 30. Re4 {[%clk 0:02:00.7]} 30...
Kh7 {[%clk 0:01:34.4]} 31. Re7 {[%clk 0:01:54.5]} 31... Rf8 {[%clk 0:01:31.1]}
32. Nf6+ {[%clk 0:01:47.8]} 32... Kh6 {[%clk 0:01:25.1]} 33. Nd7 {[%clk
0:01:33.6]} 33... Rc8 {[%clk 0:01:12.5]} 34. Rxf7 {[%clk 0:01:28.5]} 34... Rxc3
{[%clk 0:01:11.5]} 35. bxc3 {[%clk 0:01:25.6]} 35... Qc4 {[%clk 0:01:10.3]} 36.
Rf6 {[%clk 0:01:10.9]} 36... Qxc3 {[%clk 0:01:02.7]} 37. Rxd6 {[%clk 0:01:09.1]}
37... Qc8 {[%clk 0:00:58.9]} 38. Rd3 {[%clk 0:01:02.2]} 38... Qc4 {[%clk
0:00:55.7]} 39. Ne5 {[%clk 0:00:59.6]} 39... Qe6 {[%clk 0:00:52.9]} 40. f4
{[%clk 0:00:54.3]} 40... Qf5 {[%clk 0:00:47.2]} 41. Kg3 {[%clk 0:00:35.4]} 41...
h4+ {[%clk 0:00:46.2]} 42. Kf3 {[%clk 0:00:28.6]} 42... g5 {[%clk 0:00:43.7]}
43. Rd6+ {[%clk 0:00:23.4]} 43... Kh5 {[%clk 0:00:38.7]} 44. Nd3 {[%clk
0:00:08.9]} 44... g4+ {[%clk 0:00:29]} 45. Kg2 {[%clk 0:00:05.4]} 45... Qf8
{[%clk 0:00:22.7]} 46. Rd5+ {[%clk 0:00:03.8]} 46... Kh6 {[%clk 0:00:20.1]} 47.
Ne5 {[%clk 0:00:03.2]} 47... Qa8 {[%clk 0:00:18.6]} 48. Nxg4+ {[%clk 0:00:01.6]}
48... Kg6 {[%clk 0:00:17.1]} 0-1